fUST/lending_fUST_20250503
["ID","MTS","AMOUNT","RATE_DAILY","PERIOD"]
[359712158,1746273033227,-588.86,0.00023338,3]
[359712159,1746273033239,-600.0,0.00023356,2]
[359712160,1746273033250,-500.0,0.00023466,9]
[359712161,1746273033262,-151.0,0.00023466,9]
[359712162,1746273033273,-473.09,0.00023479,2]
[359712163,1746273033285,-8748.99909336,0.00023486,9]
[359712164,1746273033296,-1356.4260866,0.00023698,2]
[359712165,1746273033306,-1870.52815978,0.00023698,2]
[359712166,1746273033318,-2244.0,0.00023739,2]
[359712167,1746273033329,-707.0,0.00023739,2]
[359712168,1746273033340,-403.0,0.00023739,2]
[359712169,1746273033351,-151.0,0.0002374,9]
[359712170,1746273033362,-473.09,0.00023753,2]
[359712171,1746273033374,-501.8215206,0.0002376,2]
[359712172,1746273033385,-325.45942829,0.00023773,2]
[359712173,1746273033401,-500.0,0.00023773,2]
[359712174,1746273033412,-500.0,0.00023773,2]
[359712175,1746273033423,-500.0,0.00023773,2]
[359712176,1746273033435,-505.04758445,0.00023773,2]
[359712177,1746273033445,-512.7153866,0.00023773,2]
[359712178,1746273033456,-500.0,0.00023773,2]
[359712179,1746273033467,-298.47970894,0.00023773,2]
[359712180,1746273033479,-500.0,0.00023773,2]
[359712181,1746273033490,-500.0,0.00023773,2]
[359712182,1746273033500,-363.14975337,0.00023773,2]
[359712183,1746273033510,-500.0,0.00023773,2]
[359712184,1746273033520,-300.0,0.00023773,2]
[359712185,1746273033530,-500.0,0.00023773,2]
[359712186,1746273033540,-500.0,0.00023773,2]
[359712187,1746273033550,-500.0,0.00023773,2]
[359712188,1746273033560,-52719.79466625,0.00023799,3]
[359712189,1746273033573,-959.01,0.00023799,3]
[359712190,1746273033585,-939.52,0.00023799,3]
[359712191,1746273033679,-500.0,0.00023798,2]
[359712192,1746273033690,-346.13211801,0.00023798,2]
[359712193,1746273033700,-783.61681171,0.00023799,3]
[359712194,1746273033712,-629.54,0.00023799,3]
[359712195,1746273033724,-48687.58510937,0.00023799,3]
[359712196,1746273033959,-569.81301552,0.00023798,2]
[359712197,1746273033969,-110.33382603,0.00023799,3]
[359712218,1746273038787,-4814.62683117,0.00023799,3]
[359712220,1746273038797,-34073.1540477,0.000238,2]
[359712330,1746273039813,150.595,0.00020739,2]
[359712610,1746273042854,-0.00307485,0.000238,2]
[359712881,1746273045921,1181.46023846,0.00021,2]
[359713267,1746274046125,-269.10574733,0.00018419,2]
[359713268,1746274047090,-160.87575057,0.00018419,2]
[359713269,1746274047114,-300.0,0.00018461,2]
[359713270,1746274047137,-62.8982699,0.00018462,2]
[359713271,1746274050186,-1781.10322442,0.00018462,2]
[359713273,1746274152123,-297.387602,0.00018353,2]
[359713274,1746274152144,-300.0,0.00018461,2]
[359713275,1746274152164,-9884.00335098,0.00018462,2]
[359713276,1746274152184,-509.0224525,0.00018533,2]
[359713277,1746274152204,-400.0,0.00018546,2]
[359713278,1746274152224,-154.57525821,0.0001882,2]
[359713279,1746274152244,-400.0,0.00018876,2]
[359713280,1746274152263,-400.0,0.00018876,2]
[359713281,1746274152283,-150.0,0.000189,2]
[359713282,1746274152303,-90.08689391,0.0001915,2]
[359713283,1746274166130,-309.91310609,0.0001915,2]
[359713284,1746274166150,-175.18588919,0.0001957,2]
[359713285,1746274166172,-300.0,0.00019579,2]
[359713286,1746274166192,-300.0,0.00019579,2]
[359713287,1746274166213,-400.0,0.00019579,2]
[359713288,1746274166234,-400.0,0.00019579,2]
[359713289,1746274166261,-499.7185502,0.00019579,2]
[359713290,1746274166282,-400.0,0.0001958,2]
[359713291,1746274166303,-400.0,0.0001958,2]
[359713292,1746274166324,-400.0,0.0001958,2]
[359713293,1746274166344,-400.0,0.0001958,2]
[359713294,1746274166364,-400.0,0.0001958,2]
[359713295,1746274166385,-400.0,0.0001958,2]
[359713296,1746274166406,-400.0,0.0001958,2]
[359713297,1746274166427,-400.0,0.0001958,2]
[359713298,1746274166448,-400.0,0.0001958,2]
[359713299,1746274166469,-400.0,0.0001958,2]
[359713300,1746274166489,-400.0,0.0001958,2]
[359713301,1746274166510,-400.0,0.0001958,2]
[359713302,1746274166531,-400.0,0.0001958,2]
[359713303,1746274166552,-400.0,0.0001958,2]
[359713304,1746274166573,-231.50150882,0.0001958,2]
[359713332,1746274231839,-155.0,0.00019578,2]
[359713334,1746274231849,-300.0,0.00019578,2]
[359713336,1746274231859,-400.0,0.00019579,2]
[359713338,1746274231868,-400.0,0.00019579,2]
[359713340,1746274231878,-400.0,0.00019579,2]
[359713342,1746274231887,-300.0,0.00019579,2]
[359713344,1746274231896,-300.0,0.00019579,2]
[359713347,1746274231906,-300.0,0.00019579,2]
[359713349,1746274231916,-180.0,0.00019579,2]
[359713351,1746274231925,-400.0,0.00019579,2]
[359713353,1746274231934,-400.0,0.00019579,2]
[359713355,1746274231944,-496.97,0.00019579,2]
[359713357,1746274231954,-400.0,0.0001958,2]
[359713359,1746274231963,-400.0,0.0001958,2]
[359713360,1746274231972,-400.0,0.0001958,2]
[359713361,1746274231981,-400.0,0.0001958,2]
[359713362,1746274231990,-400.0,0.0001958,2]
[359713363,1746274232001,-400.0,0.0001958,2]
[359713364,1746274232013,-400.0,0.0001958,2]
[359713365,1746274232023,-400.0,0.0001958,2]
[359713366,1746274232032,-400.0,0.0001958,2]
[359713367,1746274232043,-400.0,0.0001958,2]
[359713368,1746274232052,-400.0,0.0001958,2]
[359713369,1746274232062,-400.0,0.0001958,2]
[359713370,1746274232072,-400.0,0.0001958,2]
[359713371,1746274232083,-400.0,0.0001958,2]
[359713372,1746274232094,-400.0,0.0001958,2]
[359713373,1746274232103,-400.0,0.0001958,2]
[359713374,1746274232113,-400.0,0.0001958,2]
[359713375,1746274232122,-11498.02769313,0.0001958,2]
[359713376,1746274232135,-1103.53653126,0.0001958,2]
[359713377,1746274232144,-400.0,0.00019853,2]
[359713378,1746274232153,-400.0,0.00019853,2]
[359713379,1746274232163,-400.0,0.00019853,2]
[359713380,1746274232173,-400.0,0.00019853,2]
[359713381,1746274232183,-400.0,0.00019853,2]
[359713382,1746274232192,-400.0,0.00019853,2]
[359713383,1746274232202,-400.0,0.00019853,2]
[359713384,1746274232212,-400.0,0.00019853,2]
[359713385,1746274232221,-400.0,0.00019853,2]
[359713386,1746274232230,-400.0,0.00019853,2]
[359713387,1746274232240,-212.09,0.00019853,2]
[359713388,1746274232249,-400.0,0.00019853,2]
[359713389,1746274232259,-400.0,0.00019853,2]
[359713390,1746274232267,-181.04011024,0.00019853,2]
[359713391,1746274232279,-218.95988976,0.00019853,2]
[359713392,1746274232288,-400.0,0.00019853,2]
[359713393,1746274232298,-512.66,0.00019853,2]
[359713394,1746274232307,-400.0,0.00019853,2]
[359713395,1746274232316,-400.0,0.00019853,2]
[359713396,1746274232326,-400.0,0.00019853,2]
[359713397,1746274232335,-400.0,0.00019853,2]
[359713398,1746274232344,-400.0,0.00019853,2]
[359713399,1746274232354,-400.0,0.00019853,2]
[359713400,1746274232364,-400.0,0.00019853,2]
[359713401,1746274232373,-221.36849118,0.00019853,2]
[359713402,1746274232383,-400.0,0.00019853,2]
[359713403,1746274232392,-264.20751344,0.000199,2]
[359713952,1746274242966,-400.0,0.0001958,2]
[359713954,1746274242976,-8468.30881076,0.000199,2]
[359713956,1746274242986,-400.0,0.00020127,2]
[359713958,1746274242995,-266.06,0.00020127,2]
[359713960,1746274243007,-208.82,0.00020127,2]
[359713962,1746274243016,-400.0,0.00020127,2]
[359713964,1746274243026,-156.48,0.00020127,2]
[359713966,1746274243036,-400.0,0.00020127,2]
[359713968,1746274243046,-400.0,0.00020127,2]
[359713970,1746274243055,-400.0,0.00020127,2]
[359713972,1746274243064,-400.0,0.00020127,2]
[359713974,1746274243074,-400.0,0.00020127,2]
[359713976,1746274243085,-310.98,0.00020127,2]
[359713978,1746274243095,-400.0,0.00020127,2]
[359713982,1746274243105,-152.46,0.00020127,2]
[359713986,1746274243115,-400.0,0.00020127,2]
[359713989,1746274243124,-400.0,0.00020127,2]
[359713992,1746274243133,-400.0,0.00020127,2]
[359713994,1746274243143,-500.0,0.000202,2]
[359713996,1746274243152,-343.98906976,0.000202,2]
[359713998,1746274243161,-500.0,0.00020218,2]
[359714000,1746274243171,-500.0,0.00020244,2]
[359714002,1746274243180,-500.0,0.00020244,2]
[359714004,1746274243188,-500.0,0.00020244,2]
[359714006,1746274243197,-500.0,0.00020244,2]
[359714008,1746274243208,-300.0,0.00020244,2]
[359714010,1746274243218,-219.90141933,0.00020244,2]
[359714012,1746274243227,-500.0,0.00020306,2]
[359714013,1746274243237,-500.0,0.00020306,2]
[359714014,1746274243246,-500.0,0.00020306,2]
[359714015,1746274243258,-501.50885988,0.00020393,2]
[359714016,1746274243268,-500.0,0.00020393,2]
[359714017,1746274243278,-242.29248261,0.000204,2]
[359714018,1746274243287,-400.0,0.00020401,2]
[359714019,1746274243297,-405.3735314,0.00020401,2]
[359714020,1746274243307,-333.33,0.00020401,2]
[359714021,1746274243316,-400.0,0.00020401,2]
[359714022,1746274243326,-511.1,0.00020401,2]
[359714023,1746274243335,-400.0,0.00020401,2]
[359714024,1746274243345,-387.38,0.00020401,2]
[359714025,1746274243355,-400.0,0.00020401,2]
[359714026,1746274243365,-400.0,0.00020401,2]
[359714027,1746274243375,-176.09,0.00020401,2]
[359714028,1746274243384,-404.87,0.00020401,2]
[359714029,1746274243394,-8732.51632419,0.0002059,3]
[359714030,1746274243404,-400.0,0.00020675,2]
[359714031,1746274243413,-294.35,0.00020675,2]
[359714032,1746274243423,-434.63,0.00020675,2]
[359714033,1746274243433,-400.0,0.00020675,2]
[359714034,1746274243442,-400.0,0.00020675,2]
[359714035,1746274243452,-203.945,0.00020832,2]
[359714036,1746274243462,-190.256,0.00020832,2]
[359714037,1746274243472,-246.67,0.00020832,2]
[359714038,1746274243481,-256.71,0.00020832,2]
[359714039,1746274243491,-545.0,0.00020832,2]
[359714040,1746274243501,-2245.0,0.00020832,2]
[359714041,1746274243510,-707.0,0.00020832,2]
[359714042,1746274243520,-400.0,0.00020949,2]
[359714043,1746274243530,-400.0,0.00020949,2]
[359714044,1746274243539,-400.0,0.00020949,2]
[359714045,1746274243549,-160.0,0.00020989,2]
[359714046,1746274243559,-841.47485993,0.00020989,2]
[359714047,1746274243568,-421.66712248,0.00020989,2]
[359714048,1746274243578,-160.0,0.00020989,2]
[359714049,1746274243588,-182.16284668,0.0002099,2]
[359714051,1746274243597,-155.0,0.00021,2]
[359714053,1746274243606,-1915.74,0.00021,2]
[359714054,1746274243615,-157.72,0.00021,2]
[359714057,1746274243782,-1000.0,0.00021083,2]
[359714059,1746274243792,-500.0,0.00021164,2]
[359714061,1746274243802,-160.0,0.00021196,2]
[359714063,1746274243811,-400.0,0.00021223,2]
[359714065,1746274243821,-400.0,0.00021223,2]
[359714067,1746274243830,-400.0,0.00021223,2]
[359714069,1746274243839,-8732.51632419,0.00021279,5]
[359714071,1746274243849,-420.0,0.00021329,2]
[359714074,1746274243858,-328.10446407,0.00021497,2]
[359714076,1746274243867,-400.0,0.00021497,2]
[359714078,1746274243876,-454.22,0.00021497,2]
[359714079,1746274243885,-400.0,0.00021771,2]
[359714082,1746274243894,-600.0,0.00021888,2]
[359714083,1746274243903,-160.0,0.00021917,2]
[359714086,1746274243912,-500.0,0.00021917,2]
[359714088,1746274243922,-500.0,0.00021917,2]
[359714090,1746274243931,-500.0,0.00021918,2]
[359714092,1746274243940,-248.86911086,0.00021918,2]
[359714094,1746274243952,-8732.51632419,0.00021969,6]
[359714096,1746274243962,-6000.0,0.00022,3]
[359714098,1746274243972,-182.16284668,0.00022,3]
[359714100,1746274243981,-841.47485993,0.00022,3]
[359714102,1746274243990,-400.0,0.00022045,2]
[359714104,1746274243999,-182.07561,0.00022107,2]
[359714106,1746274244015,-500.0,0.0002226,2]
[359714108,1746274244024,-190.28,0.00022319,2]
[359714110,1746274244033,-8732.51632419,0.00022659,7]
[359714112,1746274244042,-400.0,0.00022999,2]
[359714114,1746274244053,-400.0,0.00022999,2]
[359714116,1746274244062,-400.0,0.00022999,2]
[359714118,1746274244071,-400.0,0.00022999,2]
[359714120,1746274244081,-400.0,0.00022999,2]
[359714122,1746274244091,-400.0,0.00022999,2]
[359714124,1746274244100,-400.0,0.00022999,2]
[359714126,1746274244110,-160.0,0.00023,3]
[359714129,1746274244120,-160.0,0.00023,3]
[359714131,1746274244130,-587.0,0.00023234,2]
[359714133,1746274244139,-400.0,0.00023273,2]
[359714135,1746274244149,-400.0,0.00023273,2]
[359714137,1746274244158,-400.0,0.00023273,2]
[359714139,1746274244169,-400.0,0.00023273,2]
[359714141,1746274244178,-432.2560721,0.00023273,2]
[359714142,1746274244187,-400.0,0.00023273,2]
[359714144,1746274244197,-194.53716167,0.00023273,2]
[359714147,1746274244207,-160.0,0.00023287,2]
[359714149,1746274244217,-374.0606943,0.00023342,2]
[359714151,1746274244226,-8732.51632419,0.00023348,9]
[359714153,1746274244237,-500.0,0.00023356,2]
[359714155,1746274244246,-900.0,0.00023531,2]
[359714157,1746274244255,-171.58,0.00023547,2]
[359714159,1746274244265,-400.0,0.00023547,2]
[359714161,1746274244274,-400.0,0.00023547,2]
[359714163,1746274244283,-856.93763268,0.00023662,2]
[359714165,1746274244293,-151.0,0.0002374,9]
[359714167,1746274244303,-470.9022266,0.0002376,2]
[359714169,1746274244313,-151.88461974,0.00023773,2]
[359714171,1746274244322,-12592.61399441,0.00023799,3]
[359714173,1746274244331,-400.0,0.00023821,2]
[359714174,1746274244340,-400.0,0.00023821,2]
[359714176,1746274244349,-150.0,0.00023832,2]
[359714178,1746274244359,-150.0,0.000239,2]
[359714180,1746274244368,-2816.8214417,0.00023943,2]
[359714182,1746274244377,-500.0,0.00023973,2]
[359714184,1746274244387,-500.0,0.00023973,2]
[359714186,1746274244397,-500.0,0.00023973,2]
[359714188,1746274244407,-500.0,0.00023973,2]
[359714190,1746274244416,-500.0,0.00023973,2]
[359714192,1746274244426,-505.11699025,0.00023973,2]
[359714194,1746274244435,-160.52038394,0.00023973,2]
[359714196,1746274244445,-500.0,0.00023973,2]
[359714198,1746274244455,-500.0,0.00023973,2]
[359714200,1746274244465,-503.20920224,0.00023973,2]
[359714202,1746274244475,-500.0,0.00023973,2]
[359714204,1746274244484,-500.0,0.00023973,2]
[359714206,1746274244493,-500.0,0.00023973,2]
[359714208,1746274244502,-500.0,0.00023973,2]
[359714210,1746274244512,-500.0,0.00023973,2]
[359714212,1746274244521,-500.0,0.00023973,2]
[359714214,1746274244531,-503.70540492,0.00023973,2]
[359714216,1746274244540,-500.0,0.00023973,2]
[359714218,1746274244549,-503.28532879,0.00023973,2]
[359714220,1746274244558,-500.0,0.00023973,2]
[359714222,1746274244568,-502.69145551,0.00023973,2]
[359714224,1746274244579,-62297.17327027,0.00024,3]
[359714226,1746274244588,-65387.80349778,0.00024,2]
[359714228,1746274244598,-500.0,0.00024,2]
[359714230,1746274244608,-500.0,0.00024,2]
[359714232,1746274244617,-500.0,0.00024,2]
[359714234,1746274244626,-500.0,0.00024,2]
[359714236,1746274244636,-500.0,0.00024,2]
[359714238,1746274244645,-2973.97355282,0.00024,2]
[359714240,1746274244655,-5989.35759115,0.00024,2]
[359714242,1746274244664,-181.84715313,0.00024,7]
[359714244,1746274244673,-2000.0,0.00024,2]
[359714246,1746274244683,-498.850821,0.00024,2]
[359714248,1746274244692,-498.850821,0.00024,2]
[359714250,1746274244701,-178.53932281,0.00024014,9]
[359714252,1746274244711,-8732.51632419,0.00024038,10]
[359714254,1746274244720,-200.0,0.00024052,120]
[359714256,1746274244729,-400.0,0.00024095,2]
[359714258,1746274244738,-400.0,0.00024095,2]
[359714260,1746274244749,-1552.92,0.00024109,2]
[359714262,1746274244758,-805.0,0.00024109,2]
[359714263,1746274244768,-805.0,0.00024109,2]
[359714265,1746274244778,-805.0,0.00024109,2]
[359714267,1746274244787,-805.0,0.00024109,2]
[359714269,1746274244796,-805.0,0.00024109,2]
[359714271,1746274244806,-805.0,0.00024109,2]
[359714274,1746274244825,-805.0,0.00024109,2]
[359714277,1746274244836,-805.0,0.00024109,2]
[359714279,1746274244845,-805.0,0.00024109,2]
[359714281,1746274244855,-805.0,0.00024109,2]
[359714283,1746274244865,-805.0,0.00024109,2]
[359714285,1746274244875,-805.0,0.00024109,2]
[359714287,1746274244885,-805.0,0.00024109,2]
[359714289,1746274244894,-805.0,0.00024109,2]
[359714291,1746274244904,-805.0,0.00024109,2]
[359714293,1746274244913,-805.0,0.00024109,2]
[359714295,1746274244923,-805.0,0.00024109,2]
[359714297,1746274244932,-805.0,0.00024237,2]
[359714299,1746274244942,-400.0,0.00024369,2]
[359714301,1746274244952,-400.0,0.00024369,2]
[359714303,1746274244962,-1552.92,0.00024383,2]
[359714305,1746274244972,-151.0,0.000244,5]
[359714307,1746274244982,-1356.42608659,0.000244,2]
[359714309,1746274244991,-200.0,0.00024441,120]
[359714311,1746274245001,-500.0,0.00024452,2]
[359714313,1746274245014,-5000.0,0.00024465,2]
[359714315,1746274245025,-5000.0,0.00024499,2]
[359714317,1746274245034,-5000.0,0.00024499,2]
[359714319,1746274245044,-500.32,0.000245,7]
[359714321,1746274245054,-182.16284668,0.000245,7]
[359714323,1746274245063,-160.0,0.000245,7]
[359714325,1746274245073,-160.0,0.000245,7]
[359714327,1746274245083,-498.850821,0.000245,2]
[359714328,1746274245091,-498.850821,0.000245,2]
[359714331,1746274245102,-841.47485993,0.000245,7]
[359714333,1746274245112,-805.0,0.00024511,2]
[359714335,1746274245122,-151.0,0.000246,10]
[359714337,1746274245131,-329624.11137209,0.00024627,2]
[359714339,1746274245141,-841.47485993,0.00024627,3]
[359714341,1746274245151,-160.0,0.00024627,3]
[359714343,1746274245160,-182.16284668,0.00024628,3]
[359714345,1746274245170,-498.850821,0.00024629,2]
[359714347,1746274245179,-498.850821,0.00024629,2]
[359714349,1746274245189,-498.850821,0.00024629,2]
[359714351,1746274245199,-498.850821,0.00024629,2]
[359714352,1746274245208,-153.0,0.0002463,2]
[359714354,1746274245218,-153.0,0.0002463,2]
[359714357,1746274245228,-153.0,0.0002463,2]
[359714359,1746274245238,-153.0,0.0002463,2]
[359714361,1746274245248,-153.0,0.0002463,2]
[359714363,1746274245258,-153.0,0.0002463,2]
[359714366,1746274245267,-153.0,0.0002463,2]
[359714368,1746274245277,-153.0,0.0002463,2]
[359714370,1746274245287,-153.0,0.0002463,2]
[359714372,1746274245296,-153.0,0.0002463,2]
[359714374,1746274245306,-153.0,0.0002463,2]
[359714377,1746274245315,-153.0,0.0002463,2]
[359714379,1746274245325,-153.0,0.0002463,2]
[359714381,1746274245334,-153.0,0.0002463,2]
[359714383,1746274245343,-153.0,0.0002463,2]
[359714385,1746274245353,-153.0,0.0002463,2]
[359714387,1746274245363,-153.0,0.0002463,2]
[359714390,1746274245372,-153.0,0.0002463,2]
[359714392,1746274245382,-153.0,0.0002463,2]
[359714393,1746274245392,-153.0,0.0002463,2]
[359714395,1746274245402,-153.0,0.0002463,2]
[359714397,1746274245412,-153.0,0.0002463,2]
[359714399,1746274245422,-153.0,0.0002463,2]
[359714402,1746274245432,-153.0,0.0002463,2]
[359714403,1746274245442,-153.0,0.0002463,2]
[359714405,1746274245451,-153.0,0.0002463,2]
[359714407,1746274245461,-153.0,0.0002463,2]
[359714409,1746274245471,-153.0,0.0002463,2]
[359714411,1746274245481,-153.0,0.0002463,2]
[359714413,1746274245491,-153.0,0.0002463,2]
[359714415,1746274245501,-153.0,0.0002463,2]
[359714417,1746274245511,-153.0,0.0002463,2]
[359714419,1746274245520,-153.0,0.0002463,2]
[359714421,1746274245530,-153.0,0.0002463,2]
[359714423,1746274245539,-153.0,0.0002463,2]
[359714425,1746274245549,-153.0,0.0002463,2]
[359714427,1746274245559,-153.0,0.0002463,2]
[359714429,1746274245570,-153.0,0.0002463,2]
[359714431,1746274245580,-153.0,0.0002463,2]
[359714433,1746274245590,-153.0,0.0002463,2]
[359714435,1746274245600,-153.0,0.0002463,2]
[359714437,1746274245609,-153.0,0.0002463,2]
[359714439,1746274245619,-153.0,0.0002463,2]
[359714441,1746274245629,-153.0,0.0002463,2]
[359714443,1746274245638,-153.0,0.0002463,2]
[359714445,1746274245647,-153.0,0.0002463,2]
[359714447,1746274245657,-153.0,0.0002463,2]
[359714449,1746274245666,-153.0,0.0002463,2]
[359714451,1746274245675,-153.0,0.0002463,2]
[359714453,1746274245684,-153.0,0.0002463,2]
[359714455,1746274245696,-153.0,0.0002463,2]
[359714457,1746274245706,-153.0,0.0002463,2]
[359714459,1746274245715,-153.0,0.0002463,2]
[359714461,1746274245725,-153.0,0.0002463,2]
[359714463,1746274245734,-153.0,0.0002463,2]
[359714465,1746274245744,-153.0,0.0002463,2]
[359714467,1746274245754,-153.0,0.0002463,2]
[359714469,1746274245763,-153.0,0.0002463,2]
[359714471,1746274245773,-153.0,0.0002463,2]
[359714473,1746274245782,-153.0,0.0002463,2]
[359714475,1746274245792,-153.0,0.0002463,2]
[359714477,1746274245801,-153.0,0.0002463,2]
[359714479,1746274245811,-153.0,0.0002463,2]
[359714481,1746274245820,-153.0,0.0002463,2]
[359714483,1746274245830,-153.0,0.0002463,2]
[359714485,1746274245839,-153.0,0.0002463,2]
[359714487,1746274245848,-153.0,0.0002463,2]
[359714489,1746274245857,-153.0,0.0002463,2]
[359714491,1746274245866,-153.0,0.0002463,2]
[359714493,1746274245875,-153.0,0.0002463,2]
[359714495,1746274245885,-153.0,0.0002463,2]
[359714497,1746274245894,-153.0,0.0002463,2]
[359714499,1746274245903,-153.0,0.0002463,2]
[359714501,1746274245912,-153.0,0.0002463,2]
[359714503,1746274245921,-153.0,0.0002463,2]
[359714505,1746274245931,-153.0,0.0002463,2]
[359714507,1746274245940,-153.0,0.0002463,2]
[359714509,1746274245950,-153.0,0.0002463,2]
[359714511,1746274245959,-153.0,0.0002463,2]
[359714513,1746274245968,-153.0,0.0002463,2]
[359714515,1746274245977,-153.0,0.0002463,2]
[359714517,1746274245987,-153.0,0.0002463,2]
[359714519,1746274245997,-153.0,0.0002463,2]
[359714521,1746274246011,-153.0,0.0002463,2]
[359714523,1746274246020,-153.0,0.0002463,2]
[359714525,1746274246029,-153.0,0.0002463,2]
[359714527,1746274246038,-153.0,0.0002463,2]
[359714529,1746274246047,-153.0,0.0002463,2]
[359714531,1746274246058,-153.0,0.0002463,2]
[359714533,1746274246067,-153.0,0.0002463,2]
[359714535,1746274246077,-153.0,0.0002463,2]
[359714537,1746274246087,-153.0,0.0002463,2]
[359714539,1746274246096,-153.0,0.0002463,2]
[359714541,1746274246105,-153.0,0.0002463,2]
[359714543,1746274246115,-153.0,0.0002463,2]
[359714545,1746274246124,-153.0,0.0002463,2]
[359714546,1746274246134,-153.0,0.0002463,2]
[359714548,1746274246143,-153.0,0.0002463,2]
[359714550,1746274246152,-153.0,0.0002463,2]
[359714552,1746274246161,-153.0,0.0002463,2]
[359714554,1746274246171,-153.0,0.0002463,2]
[359714556,1746274246180,-153.0,0.0002463,2]
[359714558,1746274246189,-153.0,0.0002463,2]
[359714560,1746274246198,-153.0,0.0002463,2]
[359714562,1746274246208,-153.0,0.0002463,2]
[359714564,1746274246218,-153.0,0.0002463,2]
[359714566,1746274246227,-153.0,0.0002463,2]
[359714568,1746274246237,-153.0,0.0002463,2]
[359714570,1746274246246,-153.0,0.0002463,2]
[359714572,1746274246256,-153.0,0.0002463,2]
[359714574,1746274246265,-153.0,0.0002463,2]
[359714576,1746274246274,-153.0,0.0002463,2]
[359714578,1746274246283,-153.0,0.0002463,2]
[359714580,1746274246292,-153.0,0.0002463,2]
[359714582,1746274246302,-153.0,0.0002463,2]
[359714584,1746274246311,-153.0,0.0002463,2]
[359714586,1746274246320,-153.0,0.0002463,2]
[359714588,1746274246329,-153.0,0.0002463,2]
[359714590,1746274246339,-153.0,0.0002463,2]
[359714592,1746274246349,-153.0,0.0002463,2]
[359714594,1746274246358,-153.0,0.0002463,2]
[359714596,1746274246367,-153.0,0.0002463,2]
[359714598,1746274246377,-153.0,0.0002463,2]
[359714600,1746274246387,-153.0,0.0002463,2]
[359714602,1746274246396,-153.0,0.0002463,2]
[359714604,1746274246405,-153.0,0.0002463,2]
[359714606,1746274246414,-153.0,0.0002463,2]
[359714608,1746274246423,-153.0,0.0002463,2]
[359714610,1746274246433,-153.0,0.0002463,2]
[359714611,1746274246442,-400.0,0.00024643,2]
[359714613,1746274246452,-400.0,0.00024643,2]
[359714615,1746274246462,-2823.02593774,0.00024651,2]
[359714617,1746274246472,-1552.92,0.00024657,2]
[359714619,1746274246481,-200.0,0.00024657,7]
[359714621,1746274246491,-200.0,0.00024657,7]
[359714623,1746274246500,-160.0,0.00024657,2]
[359714625,1746274246510,-500.0,0.00024657,15]
[359714627,1746274246519,-500.0,0.00024657,15]
[359714629,1746274246530,-500.0,0.00024657,15]
[359714630,1746274246541,-500.0,0.00024657,15]
[359714631,1746274246550,-429.21173065,0.00024657,15]
[359714632,1746274246559,-200.0,0.00024657,2]
[359714633,1746274246569,-206.61255951,0.00024657,2]
[359714634,1746274246579,-400.0,0.00024657,2]
[359714635,1746274246590,-400.0,0.00024657,2]